lending/lending_fUSD_20240622
["ID","MTS","AMOUNT","RATE_DAILY","PERIOD"]
[330133177,1719030653310,-500.0,0.00019178,2]
[330133178,1719030653320,-500.0,0.00019178,2]
[330133179,1719030653329,-500.0,0.00019178,2]
[330133180,1719030653340,-547.86,0.00019178,2]
[330133181,1719030653350,-500.0,0.00019178,2]
[330133182,1719030653360,-3278.93,0.00019178,2]
[330133183,1719030653369,-508.98962948,0.00019178,2]
[330133184,1719030653378,-500.0,0.00019178,2]
[330133185,1719030653387,-500.0,0.00019178,2]
[330133186,1719030653396,-513.13603888,0.00019178,2]
[330133187,1719030653405,-500.0,0.00019178,2]
[330133188,1719030653414,-501.70072832,0.00019178,2]
[330133189,1719030653423,-545.46045509,0.00019178,2]
[330133190,1719030653433,-500.0,0.00019178,2]
[330133191,1719030653442,-7083.37,0.00019178,2]
[330133192,1719030653451,-744.73,0.00019178,2]
[330133193,1719030653460,-500.0,0.00019178,2]
[330133194,1719030653470,-500.0,0.00019178,2]
[330133195,1719030653479,-500.0,0.00019178,2]
[330133196,1719030653488,-500.0,0.00019178,2]
[330133197,1719030653499,-500.0,0.00019178,2]
[330133198,1719030653510,-1146.87,0.00019178,2]
[330133199,1719030653519,-500.0,0.00019178,2]
[330133200,1719030653530,-3699.9,0.00019178,2]
[330133201,1719030653539,-703.1,0.00019178,2]
[330133202,1719030653548,-500.0,0.00019178,2]
[330133203,1719030653557,-500.0,0.00019178,2]
[330133204,1719030653567,-500.0,0.00019178,2]
[330133205,1719030653576,-500.0,0.00019178,2]
[330133206,1719030653586,-500.0,0.00019178,2]
[330133207,1719030653597,-1131.16,0.00019178,2]
[330133208,1719030653607,-500.0,0.00019178,2]
[330133209,1719030653616,-500.0,0.00019178,2]
[330133210,1719030653625,-767.39,0.00019178,2]
[330133211,1719030653634,-576.83137702,0.00019178,2]
[330133212,1719030653643,-500.0,0.00019178,2]
[330133213,1719030653652,-1205.1,0.00019178,2]
[330133214,1719030653662,-7893.69,0.00019178,2]
[330133215,1719030653671,-500.0,0.00019178,2]
[330133216,1719030653680,-522.98,0.00019178,2]
[330133217,1719030653690,-500.0,0.00019178,2]
[330133218,1719030653699,-599.96,0.00019178,2]
[330133219,1719030653709,-500.0,0.00019178,2]
[330133220,1719030653718,-500.0,0.00019178,2]
[330133221,1719030653728,-5879.33,0.00019178,2]
[330133222,1719030653737,-629.47391928,0.00019178,2]
[330133223,1719030653746,-1072.82,0.00019178,2]
[330133224,1719030653755,-500.0,0.00019178,2]
[330133225,1719030653764,-587.28524156,0.00019178,2]
[330133226,1719030653774,-500.0,0.00019178,2]
[330133227,1719030653784,-533.44,0.00019178,2]
[330133228,1719030653793,-745.55,0.00019178,2]
[330133229,1719030653802,-500.0,0.00019178,2]
[330133230,1719030653811,-500.0,0.00019178,2]
[330133231,1719030653820,-500.0,0.00019178,2]
[330133232,1719030653830,-3167.31,0.00019178,2]
[330133233,1719030653839,-500.0,0.00019178,2]
[330133234,1719030653848,-500.0,0.00019178,2]
[330133235,1719030653857,-875.66,0.00019178,2]
[330133236,1719030653866,-1737.09,0.00019178,2]
[330133237,1719030653875,-500.0,0.00019178,2]
[330133238,1719030653885,-500.0,0.00019178,2]
[330133239,1719030653894,-634.61397835,0.00019178,2]
[330133240,1719030653903,-500.0,0.00019178,2]
[330133241,1719030653912,-534.82,0.00019178,2]
[330133242,1719030653922,-500.0,0.00019178,2]
[330133243,1719030653931,-388.40467567,0.00019178,2]
[330133244,1719030653940,-1021.53,0.00019178,2]
[330133245,1719030653949,-1695.41,0.00019178,2]
[330133246,1719030653959,-501.21431878,0.00019178,2]
[330133247,1719030653968,-500.0,0.00019178,2]
[330133248,1719030653978,-500.0,0.00019178,2]
[330133249,1719030653987,-500.0,0.00019178,2]
[330133250,1719030653997,-500.0,0.00019178,2]
[330133251,1719030654006,-611.45,0.00019178,2]
[330133252,1719030654016,-500.0,0.00019178,2]
[330133253,1719030654026,-500.0,0.00019178,2]
[330133254,1719030654035,-500.0,0.00019178,2]
[330133255,1719030654043,-500.0,0.00019178,2]
[330133256,1719030654052,-500.0,0.00019178,2]
[330133257,1719030654061,-3955.94,0.00019178,2]
[330133258,1719030654070,-715.35,0.00019178,2]
[330133259,1719030654080,-574.04973278,0.00019178,2]
[330133260,1719030654089,-500.0,0.00019178,2]
[330133261,1719030654098,-1089.04,0.00019178,2]
[330133262,1719030654108,-3055.22,0.00019178,2]
[330133263,1719030654117,-208.42280905,0.00019178,2]
[330133264,1719030654126,-500.0,0.00019178,2]
[330133265,1719030654136,-500.0,0.00019178,2]
[330133266,1719030654145,-500.0,0.00019178,2]
[330133267,1719030654154,-839.58,0.00019178,2]
[330133268,1719030654163,-500.0,0.00019178,2]
[330133269,1719030654172,-2736.85,0.00019178,2]
[330133270,1719030654181,-500.0,0.00019178,2]
[330133271,1719030654190,-500.0,0.00019178,2]
[330133272,1719030654200,-500.0,0.00019178,2]
[330133273,1719030654210,-527.30421161,0.00019178,2]
[330133274,1719030654224,-5182.95,0.00019178,2]
[330133275,1719030654237,-768.4,0.00019178,2]
[330133276,1719030654246,-826.52,0.00019178,2]
[330133277,1719030654257,-556.51,0.00019178,2]
[330133278,1719030654267,-626.87,0.00019178,2]
[330133279,1719030654278,-500.0,0.00019178,2]
[330133280,1719030654286,-500.0,0.00019178,2]
[330133281,1719030654296,-1986.59,0.00019178,2]
[330133282,1719030654305,-10482.84,0.00019178,2]
[330133283,1719030654315,-1029.85,0.00019178,2]
[330133284,1719030654325,-500.0,0.00019178,2]
[330133285,1719030654334,-501.67253682,0.00019178,2]
[330133286,1719030654343,-11973.11,0.00019178,2]
[330133287,1719030654353,-4802.62,0.00019178,2]
[330133288,1719030654362,-500.0,0.00019178,2]
[330133289,1719030654371,-574.9,0.00019178,2]
[330133290,1719030654380,-500.0,0.00019178,2]
[330133291,1719030654390,-543.52,0.00019178,2]
[330133292,1719030654399,-500.0,0.00019178,2]
[330133293,1719030654408,-895.73,0.00019178,2]
[330133294,1719030654418,-1194.07,0.00019178,2]
[330133295,1719030654427,-500.0,0.00019178,2]
[330133296,1719030654437,-678.28,0.00019178,2]
[330133297,1719030654446,-500.0,0.00019178,2]
[330133298,1719030654456,-500.0,0.00019178,2]
[330133299,1719030654466,-712.92,0.00019178,2]
[330133300,1719030654475,-500.0,0.00019178,2]
[330133301,1719030654484,-4887.7,0.00019178,2]
[330133302,1719030654493,-1485.17,0.00019178,2]
[330133303,1719030654503,-1980.76,0.00019178,2]
[330133304,1719030654512,-570.68,0.00019178,2]
[330133305,1719030654522,-500.0,0.00019178,2]
[330133306,1719030654531,-1149.05,0.00019178,2]
[330133307,1719030654541,-500.0,0.00019178,2]
[330133308,1719030654550,-500.0,0.00019178,2]
[330133309,1719030654560,-614.79339253,0.00019178,2]
[330133310,1719030654569,-790.69,0.00019178,2]
[330133311,1719030654580,-500.0,0.00019178,2]
[330133312,1719030654590,-781.45,0.00019178,2]
[330133313,1719030654599,-500.0,0.00019178,2]
[330133314,1719030654609,-935.91,0.00019178,2]
[330133315,1719030654618,-636.84,0.00019178,2]
[330133316,1719030654627,-500.0,0.00019178,2]
[330133317,1719030654636,-561.62,0.00019178,2]
[330133318,1719030654645,-731.96,0.00019178,2]
[330133319,1719030654654,-500.0,0.00019178,2]
[330133320,1719030654664,-1437.54,0.00019178,2]
[330133321,1719030654673,-152.49130188,0.00019178,2]
[330133322,1719030654682,-1012.85,0.00019178,2]
[330133323,1719030654691,-632.62,0.00019178,2]
[330133324,1719030654700,-973.72,0.00019178,2]
[330133325,1719030654709,-500.0,0.00019178,2]
[330133326,1719030654718,-500.0,0.00019178,2]
[330133327,1719030654727,-500.0,0.00019178,2]
[330133328,1719030654737,-515.25078051,0.00019178,2]
[330133329,1719030654746,-500.0,0.00019178,2]
[330133330,1719030654755,-696.04,0.00019178,2]
[330133331,1719030654765,-738.54,0.00019178,2]
[330133332,1719030654774,-500.0,0.00019178,2]
[330133333,1719030654783,-500.0,0.00019178,2]
[330133334,1719030654793,-500.0,0.00019178,2]
[330133335,1719030654802,-865.4,0.00019178,2]
[330133336,1719030654811,-500.0,0.00019178,2]
[330133337,1719030654820,-500.0,0.00019178,2]
[330133338,1719030654830,-1740.93,0.00019178,2]
[330133339,1719030654839,-609.22,0.00019178,2]
[330133340,1719030654849,-6016.84,0.00019178,2]
[330133341,1719030654858,-781.25,0.00019178,2]
[330133342,1719030654867,-500.0,0.00019178,2]
[330133343,1719030654877,-538.43793594,0.00019178,2]
[330133344,1719030654886,-500.0,0.00019178,2]
[330133345,1719030654895,-500.0,0.00019178,2]
[330133346,1719030654905,-500.0,0.00019178,2]
[330133347,1719030654914,-500.0,0.00019178,2]
[330133348,1719030654923,-500.0,0.00019178,2]
[330133349,1719030654932,-500.0,0.00019178,2]
[330133350,1719030654942,-1377.1,0.00019178,2]
[330133351,1719030654951,-500.0,0.00019178,2]
[330133352,1719030654960,-500.0,0.00019178,2]
[330133353,1719030654969,-500.0,0.00019178,2]
[330133354,1719030654979,-544.79,0.00019178,2]
[330133355,1719030654988,-1631.6,0.00019178,2]
[330133356,1719030654997,-1785.81,0.00019178,2]
[330133357,1719030655007,-1635.08,0.00019178,2]
[330133358,1719030655016,-500.0,0.00019178,2]
[330133359,1719030655025,-500.0,0.00019178,2]
[330133360,1719030655034,-282.55506073,0.00019178,2]
[330133361,1719030655043,-5327.88,0.00019178,2]
[330133362,1719030655053,-500.0,0.00019178,2]
[330133363,1719030655062,-500.0,0.00019178,2]
[330133364,1719030655072,-500.0,0.00019178,2]
[330133365,1719030655081,-500.0,0.00019178,2]
[330133366,1719030655090,-618.13,0.00019178,2]
[330133367,1719030655100,-537.5,0.00019178,2]
[330133368,1719030655109,-500.0,0.00019178,2]
[330133369,1719030655120,-500.0,0.00019178,2]
[330133370,1719030655129,-500.0,0.00019178,2]
[330133371,1719030655138,-4429.49,0.00019178,2]
[330133372,1719030655147,-500.0,0.00019178,2]
[330133373,1719030655156,-500.0,0.00019178,2]
[330133374,1719030655165,-500.0,0.00019178,2]
[330133375,1719030655175,-500.0,0.00019178,2]
[330133376,1719030655184,-500.0,0.00019178,2]
[330133377,1719030655193,-1340.92,0.00019178,2]
[330133378,1719030655202,-507.87,0.00019178,2]
[330133379,1719030655212,-1562.54,0.00019178,2]
[330133380,1719030655225,-500.0,0.00019178,2]
[330133381,1719030655235,-3761.92,0.00019178,2]
[330133382,1719030655244,-500.0,0.00019178,2]
[330133383,1719030655253,-307.72906685,0.00019178,2]
[330133384,1719030655264,-500.0,0.00019178,2]
[330133385,1719030655274,-500.0,0.00019178,2]
[330133386,1719030655283,-500.0,0.00019178,7]
[330133387,1719030655291,-1400.95,0.00019178,2]
[330133388,1719030655301,-8165.42,0.00019178,2]
[330133389,1719030655310,-843.77,0.00019178,2]
[330133390,1719030655319,-2963.38,0.00019178,2]
[330133391,1719030655328,-500.0,0.00019178,2]
[330133392,1719030655337,-1648.06,0.00019178,2]
[330133393,1719030655346,-500.0,0.00019178,2]
[330133394,1719030655356,-500.0,0.00019178,2]
[330133395,1719030655365,-500.0,0.00019178,2]
[330133396,1719030655374,-500.0,0.00019178,2]
[330133397,1719030655384,-613.18,0.00019178,2]
[330133398,1719030655393,-911.09,0.00019178,2]
[330133399,1719030655402,-5996.25,0.00019178,2]
[330133400,1719030655411,-500.0,0.00019178,2]
[330133401,1719030655420,-500.0,0.00019178,2]
[330133402,1719030655430,-500.0,0.00019178,2]
[330133403,1719030655439,-291.65271152,0.00019178,2]
[330133404,1719030655448,-500.0,0.00019178,2]
[330133405,1719030655457,-898.75,0.00019178,2]
[330133406,1719030655466,-921.54,0.00019178,2]
[330133407,1719030655475,-4120.69,0.00019178,2]
[330133408,1719030655484,-500.0,0.00019178,2]
[330133409,1719030655493,-500.0,0.00019178,2]
[330133410,1719030655503,-500.0,0.00019178,2]
[330133411,1719030655513,-799.16,0.00019178,2]
[330133412,1719030655523,-531.27,0.00019178,2]
[330133413,1719030655535,-500.0,0.00019178,2]
[330133414,1719030655544,-993.09,0.00019178,2]
[330133415,1719030655552,-500.0,0.00019178,2]
[330133416,1719030655566,-500.0,0.00019178,2]
[330133417,1719030655575,-588.57,0.00019178,2]
[330133418,1719030655584,-686.53,0.00019178,2]
[330133419,1719030655595,-500.0,0.00019178,2]
[330133420,1719030655604,-500.0,0.00019178,2]
[330133421,1719030655613,-500.0,0.00019178,2]
[330133422,1719030655623,-10174.82,0.00019178,2]
[330133423,1719030655632,-976.13,0.00019178,2]
[330133424,1719030655642,-500.0,0.00019178,2]
[330133425,1719030655652,-500.0,0.00019178,2]
[330133426,1719030655661,-500.0,0.00019178,2]
[330133427,1719030655670,-500.0,0.00019178,2]
[330133428,1719030655680,-500.0,0.00019178,2]
[330133429,1719030655689,-570.2,0.00019178,2]
[330133430,1719030655698,-500.0,0.00019178,2]
[330133431,1719030655708,-685.5,0.00019178,2]
[330133432,1719030655717,-753.10652339,0.00019178,2]
[330133433,1719030656365,-2158.56347661,0.00019178,2]
[330133434,1719030656375,-653.35,0.00019178,2]
[330133435,1719030656385,-12574.73,0.00019178,2]
[330133436,1719030656394,-1309.3,0.00019178,2]
[330133437,1719030656405,-500.0,0.00019178,2]
[330133438,1719030656415,-500.0,0.00019178,2]
[330133439,1719030656426,-500.0,0.00019178,2]
[330133440,1719030656436,-2963.88,0.00019178,2]
[330133441,1719030656447,-500.0,0.00019178,2]
[330133442,1719030656456,-907.23,0.00019178,2]
[330133443,1719030656465,-2384.36,0.00019178,2]
[330133444,1719030656474,-854.25,0.00019178,2]
[330133445,1719030656485,-500.0,0.00019178,2]
[330133446,1719030656495,-582.68988925,0.00019178,2]
[330133447,1719030656504,-4176.33,0.00019178,2]
[330133448,1719030656514,-5000.0,0.00019178,2]
[330133449,1719030656526,-500.0,0.00019178,2]
[330133450,1719030656536,-817.05,0.00019178,2]
[330133451,1719030656545,-817.78,0.00019178,2]
[330133452,1719030656554,-7487.16,0.00019178,2]
[330133453,1719030656564,-500.0,0.00019178,2]
[330133454,1719030656574,-500.0,0.00019178,2]
[330133455,1719030656583,-299.88948619,0.00019178,2]
[330133456,1719030656593,-603.64,0.00019178,2]
[330133457,1719030656603,-500.0,0.00019178,2]
[330133458,1719030656612,-500.0,0.00019178,2]
[330133459,1719030656621,-500.0,0.00019178,2]
[330133460,1719030656631,-1735.75,0.00019178,2]
[330133461,1719030656640,-535.34,0.00019178,2]
[330133462,1719030656650,-528.6,0.00019178,2]
[330133463,1719030656659,-500.0,0.00019178,2]
[330133464,1719030656668,-500.0,0.00019178,2]
[330133465,1719030656678,-500.0,0.00019178,2]
[330133466,1719030656687,-614.07,0.00019178,2]
[330133467,1719030656696,-2704.4,0.00019178,2]
[330133468,1719030656706,-500.0,0.00019178,2]
[330133469,1719030656715,-785.18,0.00019178,2]
[330133470,1719030656725,-519.3419047,0.00019178,2]
[330133471,1719030656734,-500.0,0.00019178,2]
[330133472,1719030656744,-500.0,0.00019178,2]
[330133473,1719030656754,-500.0,0.00019178,2]
[330133474,1719030656763,-615.98461873,0.00019178,2]
[330133475,1719030656772,-944.34,0.00019178,2]
[330133476,1719030656783,-500.0,0.00019178,2]
[330133477,1719030656792,-684.38,0.00019178,2]
[330133478,1719030656801,-500.0,0.00019178,2]
[330133479,1719030656811,-1559.36,0.00019178,2]
[330133480,1719030656820,-500.0,0.00019178,2]
[330133481,1719030656830,-500.0,0.00019178,2]
[330133482,1719030656839,-500.0,0.00019178,2]
[330133483,1719030656848,-584.74083483,0.00019178,2]
[330133484,1719030656858,-500.0,0.00019178,2]
[330133485,1719030656867,-712.84,0.00019178,2]
[330133486,1719030656877,-722.55,0.00019178,2]
[330133487,1719030656886,-938.4,0.00019178,2]
[330133488,1719030656895,-1074.76,0.00019178,2]
[330133489,1719030656905,-500.0,0.00019178,2]
[330133490,1719030656914,-2317.27,0.00019178,2]
[330133491,1719030656923,-2627.42,0.00019178,2]
[330133492,1719030656933,-2550.64,0.00019178,2]
[330133493,1719030656942,-500.0,0.00019178,2]
[330133494,1719030656951,-500.0,0.00019178,2]
[330133495,1719030656961,-2776.61,0.00019178,2]
[330133496,1719030656971,-500.0,0.00019178,2]
[330133497,1719030656980,-500.0,0.00019178,2]
[330133498,1719030656990,-1129.36,0.00019178,2]
[330133499,1719030656999,-500.0,0.00019178,2]
[330133500,1719030657009,-500.0,0.00019178,2]
[330133501,1719030657018,-502.38412624,0.00019178,2]
[330133502,1719030657028,-2822.47,0.00019178,2]
[330133503,1719030657038,-434.02138362,0.00019178,2]
[330133504,1719030657047,-639.8,0.00019178,2]
[330133505,1719030657056,-500.0,0.00019178,2]
[330133506,1719030657066,-500.0,0.00019178,2]
[330133507,1719030657075,-500.0,0.00019178,2]
[330133508,1719030657085,-500.0,0.00019178,2]
[330133509,1719030657096,-500.0,0.00019178,2]
[330133510,1719030657106,-704.01,0.00019178,2]
[330133511,1719030657116,-3237.66493252,0.00019178,2]
[330133512,1719030658022,-355.99679615,0.00018165,2]
[330133513,1719030658034,-674.568832,0.00018165,2]
[330133514,1719030848861,1566.6605361,0.00012,2]
[330133516,1719030865592,8433.3394639,0.00012,2]
[330133517,1719030865618,10000.0,0.00012,2]
[330133518,1719030865642,10000.0,0.00012,2]
[330133519,1719030865666,10000.0,0.00012,2]
[330133520,1719030865692,10000.0,0.00012,2]
[330133521,1719030936109,268.27796725,0.00015,14]
[330133522,1719030943542,4407.09904312,0.000112,2]
[330133523,1719030943565,847.10996905,0.000112,2]
[330133524,1719030993532,-8421.30027385,0.00012,2]
[330133525,1719031000613,1578.69972615,0.000112,2]
[330133526,1719031000637,10000.0,0.000112,2]
[330133527,1719031000659,10000.0,0.000112,2]
[330133528,1719031000682,10000.0,0.000112,2]
[330133529,1719031290898,-989.627791,0.00011142,2]
[330133530,1719031370676,47378.86644813,0.00011142,2]
[330133533,1719031460616,24684.38941947,0.00011142,2]
[330133544,1719031572690,24684.38941947,0.00011142,2]
[330133545,1719031583692,24684.38941947,0.00011142,2]
[330133548,1719031688716,24684.38941947,0.00011142,2]
[330133549,1719031751084,2899.23069997,0.00012361,2]
[330133550,1719031783204,24684.38941947,0.00011142,2]
[330133551,1719031821262,162.98003551,0.00026,60]
[330133570,1719031832349,-641.63079217,0.00011898,2]
[330133571,1719031832358,-900.36060803,0.00012359,2]
[330133572,1719031832370,-803.24786277,0.00012359,2]
[330133573,1719031832379,-291.30212659,0.00012361,2]
[330133574,1719031832389,-170.37214212,0.00012668,2]
[330133575,1719031832400,-353.13299613,0.00012668,2]
[330133576,1719031832410,-450.55885706,0.00012669,2]
[330133577,1719031832586,-60.12114294,0.00012669,2]
[330133578,1719031832596,-1342.51229694,0.00013081,2]
[330133579,1719031832606,-519.86065789,0.00013081,2]
[330133580,1719031832615,-1358.00162546,0.00013082,2]
[330133581,1719031832625,-572.00062478,0.00013425,2]
[330133582,1719031832635,-150.0,0.00013479,2]
[330133583,1719031832644,-294.34859895,0.00013501,2]
[330133584,1719031832653,-150.0,0.00013504,2]
[330133585,1719031832663,-715.84386769,0.00013505,2]
[330133586,1719031832674,-24684.38941947,0.00013505,2]
[330133587,1719031832686,-150.99,0.000139,2]
[330133588,1719031832695,-6227.69553966,0.000139,2]
[330133589,1719031832704,-1538.3601342,0.000139,2]
[330133590,1719031832715,-4828.51434642,0.000139,2]
[330133591,1719031832724,-319.26234853,0.000139,2]
[330133592,1719031832734,-489.56745087,0.000139,2]
[330133593,1719031832743,-719.48446236,0.00013934,2]
[330133594,1719031832753,-172.1,0.0001398,3]
[330133596,1719031832764,-860.5,0.0001398,3]
[330133598,1719031832774,-10503.37273456,0.0001398,2]
[330133600,1719031832783,-262.99492335,0.0001398,2]
[330133601,1719031832792,-406231.27164149,0.0001399,2]
[330133604,1719031833046,-299.99,0.0001399,2]
[330133605,1719031833081,-787.72537109,0.0001399,2]
[330133606,1719031833093,-638.49582452,0.0001399,2]
[330133607,1719031833104,-912.27462891,0.0001399,2]
[330133626,1719031838287,-262.65011809,0.0001399,2]
[330133627,1719031838502,-41269.06091975,0.0001399,2]
[330133628,1719031838561,-6688.73988323,0.0001399,2]
[330133820,1719031840568,-155.61026173,0.00013505,2]
[330133822,1719031840577,-430.72226307,0.000139,2]
[330133829,1719031840634,-466.68125589,0.000139,2]
[330133832,1719031840644,-397809.30507205,0.0001399,2]
[330133833,1719031840653,-277893.00030745,0.00014,2]
[330133836,1719031840664,-43055.13368083,0.00014,2]
[330133925,1719031841507,-1048.21934277,0.00014,2]
[330134142,1719031843502,-4095.58485922,0.00014,2]
[330134154,1719031843614,-545690.36059457,0.00014,2]
[330134160,1719031843724,-7100.0,0.00014,2]
[330134337,1719031847577,-21519.13738988,0.00014,2]
[330134338,1719031854348,-109509.0,0.00014,2]
[330134339,1719032022640,151.91,0.00018849,30]
[330134340,1719032070534,150.5,0.0001399,30]
[330134341,1719032070905,150.5,0.0001398,30]
[330134342,1719032071462,150.5,0.0001397,30]
[330134343,1719032072022,150.5,0.00019715,30]
[330134344,1719032072677,182.0,0.00019705,30]
[330134345,1719032578076,151.91,0.00018849,30]
[330134346,1719033027320,312.83812338,0.00022847,60]
[330134362,1719033031569,-582.31,0.00013322,2]
[330134363,1719033031579,-500.0,0.000137,2]
[330134364,1719033031588,-250.0,0.0001375,2]
[330134365,1719033031598,-2925.37648793,0.000138,2]
[330134366,1719033031610,-2536.89556674,0.000138,2]
[330134367,1719033031619,-2042.6672233,0.000138,2]
[330134368,1719033031628,-500.0,0.00013812,2]
[330134369,1719033031638,-248.59,0.0001389,3]
[330134370,1719033031647,-5757.67388894,0.0001389,2]
[330134371,1719033031658,-8896.76130748,0.0001389,2]
[330134372,1719033031670,-1241.09600358,0.0001389,2]
[330134373,1719033031679,-175.62575419,0.000139,2]
[330134374,1719033031688,-1039.37665405,0.000139,2]
[330134375,1719033031704,-2748.05976961,0.000139,2]
[330134376,1719033031715,-447.3187091,0.000139,2]
[330134377,1719033031858,-401.61999996,0.000139,2]
[330134378,1719033031872,-12190.98426728,0.000139,2]
[330134379,1719033031881,-1253.5996,0.000139,2]
[330134380,1719033031892,-406.2516,0.000139,2]
[330134381,1719033031902,-133743.172,0.000139,2]
[330134382,1719033031914,-29920.05,0.000139,2]
[330134383,1719033031923,-203.93691935,0.000139,2]
[330134384,1719033031934,-2371.57125734,0.000139,2]
[330134385,1719033031943,-314.74302252,0.000139,2]
[330134386,1719033031952,-168.68431455,0.00013936,2]
[330134387,1719033031961,-782536.25221993,0.00014,2]
[330134388,1719033031973,-672.3424,0.00014,2]
[330134389,1719033031985,-363.76455997,0.00014,2]
[330134390,1719033031997,-7210.56446147,0.00014,2]
[330134391,1719033032008,-2522.06617273,0.00014,2]
[330134392,1719033032019,-7384.92556584,0.00014,2]
[330134393,1719033032031,-1212.8,0.00014,2]
[330134394,1719033032053,-2102.4993963,0.00014,2]
[330134395,1719033032064,-3930.41865035,0.00014,2]
[330134396,1719033032076,-809.73333754,0.00014,2]
[330134397,1719033032093,-2197.83270384,0.00014,2]
[330134398,1719033032103,-681.39069848,0.00014,2]
[330134399,1719033032152,-19.77617293,0.00014,2]
[330134400,1719033032168,-500.77266238,0.00014,2]
[330134401,1719033032893,-931.48517471,0.00014,2]
[330134402,1719033032905,-3064.60664569,0.00014,2]
[330134403,1719033032918,-1666.21666469,0.00014,2]
[330134404,1719033032929,-741.8811006,0.00014,2]
[330134410,1719033037723,-313.27,0.00014,2]
[330134411,1719033037735,-5751.94436489,0.00014,2]
[330134412,1719033037746,-5107.21732208,0.00014,2]
[330134416,1719033037777,-1765.0,0.00014,2]
[330134418,1719033037789,-432.68167204,0.00014,2]
[330134421,1719033037802,-1454.24510192,0.00014,2]
[330134423,1719033037814,-2623.41555,0.00014,2]
[330134427,1719033037848,-27447.11317172,0.00014,2]
[330134429,1719033037860,-1425.25188922,0.00014,2]
[330134432,1719033037872,-1973.84237263,0.00014,2]
[330134434,1719033037885,-438.29,0.00014,2]
[330134436,1719033037897,-11827.7989975,0.00014,2]
[330134437,1719033037998,-2420.81276336,0.00014,2]
[330134438,1719033038009,-7969.17193469,0.00014,2]
[330134439,1719033038021,-3386.27530717,0.00014,2]
[330134440,1719033038040,-413.27020903,0.00014,2]
[330134441,1719033038052,-2107.62515821,0.00014,2]
[330134442,1719033038063,-8139.43099432,0.00014,2]
[330134443,1719033038089,-853.08727691,0.00014,2]
[330134455,1719033038232,-7214.73959698,0.00014,2]
[330134458,1719033038245,-318.60360543,0.00014,2]
[330134460,1719033038257,-14201.0553162,0.00014,2]
[330134462,1719033038271,-1876.900965,0.00014,2]
[330134623,1719033039950,-109022.55688916,0.00014,2]
[330134625,1719033039962,-170976.81831178,0.00014,2]
[330134627,1719033039973,-20266.65004122,0.00014,2]
[330134639,1719033040070,-1487.92434299,0.00014,2]
[330134641,1719033040086,-387.72733961,0.00014,2]
[330134649,1719033040153,-204206.6491607,0.00014,2]
[330134652,1719033040177,-1185.51692829,0.00014,2]
[330134655,1719033040189,-549.80271798,0.00014,2]
[330134657,1719033040200,-2658.97000642,0.00014,2]
[330134659,1719033040212,-338.79383807,0.00014,2]
[330134673,1719033040337,-300.0,0.00014,2]
[330134676,1719033040349,-650.06191534,0.00014,2]
[330134680,1719033040382,-1085.30000058,0.00014,2]
[330134684,1719033040394,-792.15256105,0.00014,2]
[330134801,1719033042869,-0.00562102,0.00014,2]
[330134802,1719033043450,-545690.36059457,0.00014,2]
[330134807,1719033045682,-887.57744227,0.00014,2]
[330134808,1719033045694,-2089.86470127,0.00014,2]